[Event "45th FIDE Olympiad 2024"]
[Site "Budapest"]
[Date "2024.09.11"]
[Round "1.14"]
[White "Mahendra, Gurung"]
[Black "Pasko, Llambi"]
[Result "0-1"]
[ECO "C68"]
[WhiteElo "1725"]
[BlackElo "2396"]
[Annotator "TA"]
[PlyCount "62"]
[EventDate "2024.09.05"]
[EventType "team-tourn"]
[EventCountry "HUN"]
[SourceTitle "playchess.com"]
[Source "ChessBase"]
[SourceQuality "1"]
[WhiteTeam "Bhutan"]
[BlackTeam "Albania"]
[WhiteTeamCountry "BTN"]
[BlackTeamCountry "ALB"]
[TimeControl "40/5400+30:1800+30"]

{[%evp 9,61,-25,-18,-81,-73,-76,-79,-75,-79,-122,-72,-85,-81,-88,-67,-104,-92,-100,-121,-134,-95,-222,-216,-266,-264,-448,-185,-160,-128,-356,-361,-29986,-29987,-29987,-29988,-29988,-29989,-29989,-29988,-29988,-29989,-29989,-29990,-29990,-29989,-29991,-29990,-29992,-29991,-29997,-29998,-29998,-29999,-29999]} 1. e4 e5 2. Nf3 Nc6 3. Bb5 a6 4. Be2 Nf6 5. d3 d5 6. Bg5 (6. Nbd2 $11 {keeps the balance.}) 6... dxe4 $17 7. Bxf6 Qxf6 8. dxe4 {Black is better.} Qg6 9. Nbd2 Be6 (9... Qxg2 $142 10. Rg1 Qh3) 10. g3 Rd8 11. c3 Be7 {Black is much more active. The white rooks are passive.} 12. Qa4 O-O 13. O-O Bg4 $36 {[%mdl 2048] Threatens to win with ...Rxd2. Keeping White busy.} 14. Qc2 Qh5 {[%cal Od8d2]} 15. Bd1 {[#]} (15. Kg2 $17) 15... Rd6 $1 $19 16. Ne1 Rh6 17. Ndf3 (17. Nef3 {is a better defense.} Rd8 18. h4) 17... f5 (17... Qh3 $142 18. Qd2 Nd8) 18. h4 g5 19. exf5 $2 {Now White is beyond hope.} (19. Nxg5 $17 f4 20. Qb3+ Kg7 21. Bxg4 Qxg4 22. Qd1) 19... gxh4 20. Kg2 {[#]} (20. Nh2 $19 hxg3 21. fxg3 Bc5+ 22. Kh1 Bxd1 (22... Rxf5 $2 23. Rxf5 Qxf5 24. Qxf5 $19) 23. Rxd1) 20... hxg3 {Black mates.} 21. fxg3 Qh3+ 22. Kf2 Bc5+ 23. Ke2 Qxg3 {White is weak on the dark squares} 24. Qb3+ Kh8 25. Kd2 Qf4+ 26. Kc2 Bxf5+ {This pair of bishops is nice.} 27. Nd3 Bxd3+ 28. Kxd3 Rd8+ 29. Kc2 Qe4+ 30. Kc1 Be3+ 31. Nd2 Bxd2# {Weighted Error Value: White=0.63/Black=0.13 (very precise) .  Loses game:     	White=1     	---        Mistake:       	White=3     	Black=2      Inaccurate:     	White=2     	---        OK:         	White=3     	Black=4      Best:        	White=2     	Black=3      Strong:       	---       	Black=1} 0-1

[Event "45th FIDE Olympiad 2024"]
[Site "Budapest"]
[Date "2024.09.11"]
[Round "1.15"]
[White "Mehmeti, Dritan"]
[Black "Suk, Raj Monger"]
[Result "1-0"]
[ECO "D00"]
[WhiteElo "2364"]
[BlackElo "1821"]
[Annotator "ChessBase"]
[PlyCount "43"]
[EventDate "2024.09.05"]
[EventType "team-tourn"]
[EventCountry "HUN"]
[SourceTitle "playchess.com"]
[Source "ChessBase"]
[SourceQuality "1"]
[WhiteTeam "Albania"]
[BlackTeam "Bhutan"]
[WhiteTeamCountry "ALB"]
[BlackTeamCountry "BTN"]
[TimeControl "40/5400+30:1800+30"]

1. d4 Nf6 2. Bg5 d5 3. Nd2 h6 4. Bh4 Nc6 5. e3 a6 6. Ngf3 Bg4 7. c4 e6 8. Rc1 Bb4 9. a3 Bxd2+ 10. Qxd2 g5 11. Bg3 Ne4 12. Qc2 h5 13. Ne5 Nxe5 14. Bxe5 Nf6 15. cxd5 exd5 16. Qxc7 Qxc7 17. Rxc7 Rh6 18. h4 gxh4 19. f3 Bc8 20. Rxh4 Nd7 21. Bf4 Rh7 22. Bd3 1-0

[Event "45th FIDE Olympiad 2024"]
[Site "Budapest"]
[Date "2024.09.11"]
[Round "1.15"]
[White "Camacho Campusano, David Daniel"]
[Black "Bu, Xiangzhi"]
[Result "0-1"]
[ECO "B95"]
[WhiteElo "2219"]
[BlackElo "2693"]
[Annotator "TA"]
[PlyCount "56"]
[EventDate "2024.09.05"]
[EventType "team-tourn"]
[EventCountry "HUN"]
[SourceTitle "playchess.com"]
[Source "ChessBase"]
[SourceQuality "1"]
[WhiteTeam "Dominican Republic"]
[BlackTeam "China"]
[WhiteTeamCountry "DOM"]
[BlackTeamCountry "CHN"]
[TimeControl "40/5400+30:1800+30"]

{[%evp 14,56,0,0,0,0,0,0,0,0,0,-80,-40,-37,-20,-35,0,-78,0,0,-1,0,0,-26,5,0,0,0,0,-125,-133,-124,-117,-497,-504,-506,-479,-522,-460,-532,-541,-561,-554,-792,-784]} 1. e4 {[%emt 0:00:23]} c5 {[%emt 0:00:18]} 2. Nf3 {[%emt 0:00:15]} d6 {[%emt 0:00:42]} 3. d4 {[%emt 0:01:14]} cxd4 {[%emt 0:00:12]} 4. Nxd4 {[%emt 0:00:06]} Nf6 {[%emt 0:00:09]} 5. Nc3 {[%emt 0:00:14]} a6 {[%emt 0:00:12]} 6. Bg5 {[%emt 0:04:31]} Nbd7 {[%emt 0:02:30]} 7. Qd2 {[%emt 0:07:34]} e6 {[%emt 0:05:36]} 8. f3 {[%emt 0:02:01]} h6 {[%emt 0:07:26]} 9. Be3 {[%emt 0:01:27]} b5 {[%emt 0:01:21]} 10. a3 {[%emt 0:09:57]} Bb7 {[%emt 0:02:49] The position is equal.} 11. O-O-O {[%emt 0:12:27]} Rc8 {[%emt 0:02:30]} 12. g4 {[%emt 0:03:00]} (12. Kb1 $11) 12... Ne5 {[%emt 0:10:49]} 13. g5 {[%emt 0:02:27]} hxg5 {[%emt 0:10:44]} 14. Bxg5 {[%emt 0:01:47]} Qc7 {[%emt 0:11:52][%cal Oe5f3] Hoping for ...Nxf3!} 15. Kb1 {[%emt 0:06:51] [#]} (15. Rg1 $11 {keeps the balance.}) 15... Nfd7 {[%emt 0:04:22] Black is more active.} (15... Nxf3 $1 $17 16. Nxf3 Nxe4 17. Nxe4 Bxe4) 16. f4 $11 {[%emt 0:08:13]} Nc4 {[%emt 0:00:22]} 17. Bxc4 {[%emt 0:01:00]} Qxc4 {[%emt 0:00:06]} 18. Rhe1 $1 {[%emt 0:07:16]} Nb6 {[%emt 0:13:34]} (18... b4 {looks sharper.} 19. Nd5 e5 20. fxe5 dxe5 21. Nf5 Bxd5 22. b3 Qc7) 19. e5 {[%emt 0:04:59] [#] And now exd6 would win.} b4 $36 {[%emt 0:05:09][%mdl 2048] Black fights for an advantage.} 20. axb4 {[%emt 0:05:02]} Qxb4 {[%emt 0:03:13] ...Nc4 is the strong threat.} 21. Ne4 {[%emt 0:04:35]} (21. Nb3 $11 {remains equal.} Nc4 22. Qd3) 21... Qxd2 $17 {[%emt 0:02:28]} 22. Rxd2 {[%emt 0:04:07]} Nc4 {[%emt 0:00:47][%csl LRd2,LRe5]} 23. Rde2 {[%emt 0:02:13][%mdl 8192] Now White is beyond hope.} (23. Rg2 $17 {is a better chance.}) 23... Bxe4 $19 {[%emt 0:00:11] Black is clearly winning.} ({Less strong is} 23... dxe5 24. fxe5 Bxe4 (24... Nxe5 25. h4 $17) 25. Rxe4 $17) 24. Rxe4 {[%emt 0:00:43]} Nd2+ {[%emt 0:00:05]} ({Not} 24... Rxh2 25. R4e2 Rxe2 26. Rxe2 $19) 25. Kc1 {[%emt 0:00:11]} Nxe4 {[%emt 0:00:04]} 26. Rxe4 {[%emt 0:00:21]} Rxh2 {[%emt 0:01:06]} 27. exd6 {[%emt 0:01:22]} f6 {[%emt 0:00:24]} 28. f5 {[%emt 0:08:02]} fxg5 {[%emt 0:00:11] Weighted Error Value: White=0.75/Black=0.13 (very precise) .  Loses game:     	White=1     	---        Mistake:       	White=3     	Black=1      Inaccurate:     	White=1     	Black=3      OK:         	White=6     	Black=10     Best:        	---       	Black=3      Strong:       	White=1     	---} 0-1

[Event "45th FIDE Olympiad 2024"]
[Site "Budapest"]
[Date "2024.09.11"]
[Round "1.16"]
[White "Wang, Yue"]
[Black "Jimenez Jimenez, Leandro"]
[Result "1-0"]
[ECO "D51"]
[WhiteElo "2637"]
[BlackElo "2188"]
[Annotator "TA"]
[PlyCount "59"]
[EventDate "2024.09.05"]
[EventType "team-tourn"]
[EventCountry "HUN"]
[SourceTitle "playchess.com"]
[Source "ChessBase"]
[SourceQuality "1"]
[WhiteTeam "China"]
[BlackTeam "Dominican Republic"]
[WhiteTeamCountry "CHN"]
[BlackTeamCountry "DOM"]
[TimeControl "40/5400+30:1800+30"]

{[%evp 12,59,45,37,53,40,79,75,125,120,130,131,136,143,212,191,293,272,315,326,438,452,450,442,431,360,492,488,456,430,631,516,514,502,504,499,651,685,689,673,814,795,813,802,2000,1943,29989,29989,29987,1672]} 1. d4 {[%emt 0:00:08]} Nf6 {[%emt 0:00:20]} 2. c4 {[%emt 0:00:18]} e6 {[%emt 0:00:06]} 3. Nc3 {[%emt 0:00:15]} d5 {[%emt 0:00:09]} 4. cxd5 {[%emt 0:00:36]} exd5 {[%emt 0:00:06]} 5. Bg5 {[%emt 0:00:05][%cal Bc1g5,Bg5h4,Bh4g3][%mdl 32]} Nbd7 {[%emt 0:02:12]} 6. e3 {[%emt 0:00:17]} Bb4 {[%emt 0:00:16]} 7. Bd3 {[%emt 0:02:05]} h6 {[%emt 0:00:14]} 8. Bh4 {[%emt 0:01:10]} g5 {[%emt 0:01:39]} 9. Bg3 {[%emt 0:00:16]} Ne4 {[%emt 0:00:12]} (9... Nb6 $142) 10. Bxe4 $16 {[%emt 0:05:02]} dxe4 {[%emt 0:00:45]} 11. Nge2 {[%emt 0:12:55]} Nb6 {[%emt 0:14:07]} 12. h4 {[%emt 0:15:11][%cal Bh2h4,Bh4g5,Bg5h6][%mdl 32]} Bg4 {[%emt 0:15:37]} (12... g4 $16 13. a3 Be7 14. Nxe4 Nd5) 13. Qc2 {[%emt 0:04:20]} f5 {[%emt 0:32:30]} (13... c6 {keeps fighting.} 14. Qxe4+ Be6) 14. hxg5 {[%emt 0:00:16]} Bxe2 {[%emt 0:02:48]} 15. Qxe2 {[%emt 0:03:44]} Qd5 {[%emt 0:06:40] Dodges Qb5+} 16. Be5 {[%emt 0:08:17]} (16. Bxc7 Bxc3+ 17. Kf1 (17. bxc3 Qc6 $11) 17... Bxb2 18. Qxb2 Qc4+ 19. Kg1 Qxc7 $14) (16. Rxh6 O-O-O 17. Qh5 Rxh6 18. gxh6 Qc4 $18) 16... O-O-O {[%emt 0:03:27]} 17. Bxh8 {[%emt 0:02:07]} (17. gxh6 Bxc3+ 18. bxc3 Qc6 $16) 17... Rxh8 {[%emt 0:00:43]} 18. gxh6 {[%emt 0:00:51]} Na4 {[%emt 0:00:08]} 19. Qc2 {[%emt 0:13:09]} Qc6 {[%emt 0:02:34][%cal Oa4b2]} 20. Rc1 {[%emt 0:04:58]} Nb6 {[%emt 0:05:41]} (20... Nxc3 $142 21. bxc3 Bf8) 21. Qb3 {[%emt 0:03:08]} Nd5 {[%emt 0:00:16]} 22. Kd1 {[%emt 0:05:29]} Bxc3 {[%emt 0:04:00]} 23. bxc3 {[%emt 0:00:06][%cal Bb2c3,Bc3c4][%mdl 32]} f4 {[%emt 0:00:05]} 24. c4 {[%emt 0:01:51]} Nf6 {[%emt 0:01:44]} 25. Qb5 {[%emt 0:02:49]} Qe6 {[%emt 0:01:22]} 26. Qe5 {[%emt 0:01:28]} Qg4+ {[%emt 0:00:27]} 27. Kc2 {[%emt 0:00:14]} Re8 {[%emt 0:04:33]} 28. Qxf6 {[%emt 0:01:34] [#] Threatening mate with h7.} Re6 {[%emt 0:00:11]} 29. Qf8+ {[%emt 0:00:35]} Kd7 {[%emt 0:00:06]} 30. Qg7+ {[%emt 0:00:09] Black got outplayed after the opening.   Weighted Error Value: White=0.18 (very precise) /Black=0.59.  Mistake:       	---       	Black=4      Inaccurate:     	---       	Black=4      OK:         	White=7     	Black=5      Best:        	White=1     	---} (30. Qf7+ $142 Kc8 31. h7 (31. Qxf4 Qe2+ 32. Kc3 Ra6 $18) (31. Qf8+ Kd7 $18) 31... Qe2+ 32. Kc3 Qd3+ 33. Kb2 Qd2+ 34. Ka1 Qxa2+ 35. Kxa2) 1-0

[Event "45th FIDE Olympiad 2024"]
[Site "Budapest"]
[Date "2024.09.11"]
[Round "1.16"]
[White "Lhundrup, M Dorji"]
[Black "Veleshnja, Zino"]
[Result "0-1"]
[ECO "B90"]
[WhiteElo "1715"]
[BlackElo "2294"]
[Annotator "ChessBase"]
[PlyCount "74"]
[EventDate "2024.09.05"]
[EventType "team-tourn"]
[EventCountry "HUN"]
[SourceTitle "playchess.com"]
[Source "ChessBase"]
[SourceQuality "1"]
[WhiteTeam "Bhutan"]
[BlackTeam "Albania"]
[WhiteTeamCountry "BTN"]
[BlackTeamCountry "ALB"]
[TimeControl "40/5400+30:1800+30"]

1. e4 c5 2. Nf3 d6 3. d4 cxd4 4. Nxd4 Nf6 5. Nc3 a6 6. f3 e5 7. Nb3 Be6 8. Be3 h5 9. Qd2 Nbd7 10. O-O-O Be7 11. Kb1 Qc7 12. h3 Rd8 13. f4 O-O 14. Be2 Nc5 15. Bf3 b5 16. f5 Bxb3 17. cxb3 b4 18. Nd5 Nxd5 19. Qxd5 h4 20. Rc1 a5 21. Rhg1 Rc8 22. g4 Qc6 23. Qd2 a4 24. Qxb4 axb3 25. axb3 Ra8 26. Rc4 Qa6 27. Qc3 Rfb8 28. Bxc5 Qa2+ 29. Kc2 dxc5 30. Bd1 Bg5 31. Rxc5 Qa1 32. Re1 Qc1+ 33. Kd3 Rd8+ 34. Rd5 Qf4 35. Kc2 Rdc8 36. Rc5 Rxc5 37. Qxc5 Qc1+ 0-1

[Event "45th FIDE Olympiad 2024"]
[Site "Budapest"]
[Date "2024.09.11"]
[Round "1.17"]
[White "Abdusattorov, Nodirbek"]
[Black "Johnson, Joshua"]
[Result "1-0"]
[ECO "C54"]
[WhiteElo "2766"]
[BlackElo "2267"]
[Annotator "TA"]
[PlyCount "89"]
[EventDate "2024.09.05"]
[EventType "team-tourn"]
[EventCountry "HUN"]
[SourceTitle "playchess.com"]
[Source "ChessBase"]
[SourceQuality "1"]
[WhiteTeam "Uzbekistan"]
[BlackTeam "Trinidad & Tobago"]
[WhiteTeamCountry "UZB"]
[TimeControl "40/5400+30:1800+30"]

{[%evp 19,89,0,2,0,0,0,8,0,37,23,20,35,31,0,22,23,18,30,27,8,16,4,20,39,62,54,78,41,80,51,33,37,32,46,43,33,76,75,76,76,75,57,122,35,40,0,86,80,75,82,76,83,141,150,463,472,583,581,570,566,681,681,817,804,899,723,1868,1840,6538,6258,5114,3152]} 1. e4 {[%emt 0:00:28]} e5 {[%emt 0:00:12]} 2. Nf3 {[%emt 0:00:09]} Nc6 {[%emt 0:00:04]} 3. Bc4 {[%emt 0:00:15]} Nf6 {[%emt 0:00:16]} 4. d3 {[%emt 0:00:10]} Bc5 {[%emt 0:00:04]} 5. c3 {[%emt 0:00:10]} d6 {[%emt 0:00:15]} 6. b4 {[%emt 0:00:07]} Bb6 {[%emt 0:00:09]} 7. a4 {[%emt 0:00:03]} a5 {[%emt 0:03:04]} 8. b5 {[%emt 0:00:07]} Ne7 {[%emt 0:07:36]} 9. Nbd2 {[%emt 0:00:08]} O-O {[%emt 0:01:54]} 10. O-O {[%emt 0:00:09]} Ng6 {[%emt 0:02:05]} 11. d4 {[%emt 0:00:42]} Bg4 {[%emt 0:06:27]} 12. Qc2 {[%emt 0:00:32]} Re8 {[%emt 0:06:27]} 13. h3 {[%emt 0:10:59] The position is equal.} Be6 {[%emt 0:20:14]} 14. dxe5 {[%emt 0:04:34]} Nxe5 {[%emt 0:03:08]} 15. Nxe5 {[%emt 0:01:10]} dxe5 {[%emt 0:00:12]} 16. Rd1 {[%emt 0:08:24]} Qe7 {[%emt 0:05:03]} 17. Ba3 {[%emt 0:01:35]} Bc5 {[%emt 0:03:43]} 18. Bxe6 {[%emt 0:01:29]} fxe6 {[%emt 0:00:03]} 19. Bc1 {[%emt 0:14:59]} Rad8 {[%emt 0:02:26][%cal Of6g4]} 20. Re1 {[%emt 0:00:46]} Rf8 {[%emt 0:03:22][%cal Of6g4] And now ...Ng4! would win.} 21. Nf3 {[%emt 0:00:28]} Bd6 {[%emt 0:06:30]} 22. Be3 {[%emt 0:01:34]} b6 {[%emt 0:00:52]} 23. Rad1 {[%emt 0:00:46]} Rde8 {[%emt 0:02:27]} 24. Nd2 {[%emt 0:02:35][%cal Bf3d2,Bd2c4,Bc4b2,Bb2d3,Bd3e5,Be5c6,Bc6d8][%mdl 32]} Bc5 {[%emt 0:03:18]} 25. Nc4 {[%emt 0:02:33]} Bxe3 {[%emt 0:00:51]} 26. Rxe3 {[%emt 0:00:07]} Qc5 {[%emt 0:00:04]} 27. Nb2 {[%emt 0:00:34]} Rd8 {[%emt 0:02:46]} 28. Nd3 {[%emt 0:00:39]} Qd6 {[%emt 0:01:02]} 29. Ree1 {[%emt 0:00:31]} Rd7 {[%emt 0:08:51]} 30. Kh2 {[%emt 0:09:34][%cal Of2f4]} g5 {[%emt 0:01:36]} ({Black should play} 30... Rfd8 $1 $14) 31. Qc1 {[%emt 0:03:29]} (31. c4 $16 {c5 is the strong threat.} c5 32. Nb4 (32. bxc6 Qxc6 33. Qc1 Rg7 $14)) 31... Rg7 $1 $14 {[%emt 0:01:06]} 32. Qe3 {[%emt 0:04:04][%cal Od3b4]} Qa3 {[%emt 0:05:46]} (32... g4 $11) 33. Nxe5 $16 {[%emt 0:01:06]} Qxa4 {[%emt 0:00:39]} 34. Qd3 {[%emt 0:00:54] Threatens to win with Ra1.} Qa3 {[%emt 0:01:11] [#]} 35. Qc4 $1 {[%emt 0:00:50]} Qe7 {[%emt 0:00:15] [#]} (35... Kh8 $142) 36. Nc6 $1 $36 {[%emt 0:00:10][%mdl 2048] White is in control. White has more active pieces.} Qf7 {[%emt 0:02:36] Loses the game.} (36... Qe8 $16) 37. Nd8 $18 {[%emt 0:05:43] White is clearly winning.} Ng4+ {[%emt 0:00:07]} 38. hxg4 {[%emt 0:00:04]} Qf4+ {[%emt 0:00:03]} 39. Kh1 {[%emt 0:01:19][%cal Bh2h1,Bh1g1,Bg1f1,Bf1e2][%mdl 32]} Rg6 {[%emt 0:00:03][%cal Bg7g6,Bg6h6,Bh6h3][%mdl 32] ( -> ...Rh6+)} 40. f3 {[%emt 0:01:43]} (40. Nxe6 $2 Rh6+ 41. Kg1 Qxf2#) 40... Rh6+ {[%emt 0:02:26]} 41. Kg1 {[%emt 0:30:02]} Rh3 {[%emt 0:13:37]} 42. Rd3 {[%emt 0:00:00]} (42. gxh3 $2 {loses.} Qg3+ 43. Kh1 Qxh3+ 44. Kg1 Qg3+ 45. Kh1 (45. Kf1 $2 {is a self mate.} Rxf3+ 46. Ke2 Qg2#) 45... Rf6 $19 (45... Qxf3+ 46. Kh2 $11) (45... Qxf3+ 46. Kh2 $11)) 42... Qh2+ {[%emt 0:01:30]} 43. Kf1 {[%emt 0:00:00][%cal Od8e6] Nxe6! would now be deadly.} Qg3 {[%emt 0:04:30]} 44. gxh3 {[%emt 0:00:00]} Rxf3+ {[%emt 0:00:54]} 45. Ke2 {[%emt 0:00:00] Weighted Error Value: White=0.13 (very precise) /Black=0.40.  Loses game:     	---       	Black=1      Mistake:       	White=1     	Black=3      Inaccurate:     	White=4     	Black=3      OK:         	White=12    	Black=8      Best:        	White=5     	Black=3      Strong:       	White=2     	Black=1} 1-0

[Event "45th FIDE Olympiad 2024"]
[Site "Budapest"]
[Date "2024.09.11"]
[Round "1.17"]
[White "Aziz, Husain"]
[Black "Olson, Hamish"]
[Result "1/2-1/2"]
[ECO "D02"]
[WhiteElo "2340"]
[BlackElo "2384"]
[Annotator "ChessBase"]
[PlyCount "124"]
[EventDate "2024.09.05"]
[EventType "team-tourn"]
[EventCountry "HUN"]
[SourceTitle "playchess.com"]
[Source "ChessBase"]
[SourceQuality "1"]
[WhiteTeam "Qatar"]
[BlackTeam "Scotland"]
[WhiteTeamCountry "QAT"]
[BlackTeamCountry "SCO"]
[TimeControl "40/5400+30:1800+30"]

1. d4 d5 2. Nf3 Nf6 3. Bf4 c5 4. e3 Nc6 5. Nbd2 cxd4 6. exd4 Bf5 7. c3 e6 8. Bb5 Nd7 9. O-O Be7 10. Re1 O-O 11. a4 Rc8 12. h3 h6 13. Bf1 Nf6 14. Qe2 Ne4 15. Nxe4 Bxe4 16. Nd2 Bg6 17. Nb3 Bd6 18. Bxd6 Qxd6 19. a5 Ne7 20. Qb5 Qc6 21. Nc5 Qxb5 22. Bxb5 Rc7 23. Ra4 Nc8 24. Rb4 Nd6 25. Bf1 Re7 26. g4 Rc8 27. f3 Rcc7 28. Kf2 Bh7 29. h4 g5 30. hxg5 hxg5 31. Re5 f6 32. Rxe6 Rxe6 33. Nxe6 Re7 34. Nc5 f5 35. gxf5 Bxf5 36. Be2 Kg7 37. Bd1 Bg6 38. Bb3 Bf7 39. Nd3 Kf6 40. Ne5 Be6 41. Bc2 Bf5 42. Bb3 Be6 43. Bc2 Rc7 44. Ra4 Nf7 45. Nxf7 Rxf7 46. Ra1 g4 47. fxg4 Bxg4 48. Kg3 Kg5 49. Re1 Rf3+ 50. Kg2 Kf4 51. Re7 Rg3+ 52. Kf2 Rf3+ 53. Kg2 Rg3+ 54. Kf2 Rf3+ 55. Ke1 Re3+ 56. Rxe3 Kxe3 57. Bg6 b6 58. axb6 axb6 59. Be8 Kd3 60. Bg6+ Ke3 61. Be8 Kd3 62. Bg6+ Ke3 1/2-1/2

[Event "45th FIDE Olympiad 2024"]
[Site "Budapest"]
[Date "2024.09.11"]
[Round "1.18"]
[White "Waldhausen Gordon, Frederick"]
[Black "Erfan, Mohamad Firdaus"]
[Result "1-0"]
[ECO "D27"]
[WhiteElo "2351"]
[BlackElo "1758"]
[Annotator "TA"]
[PlyCount "97"]
[EventDate "2024.09.05"]
[EventType "team-tourn"]
[EventCountry "HUN"]
[SourceTitle "playchess.com"]
[Source "ChessBase"]
[SourceQuality "1"]
[WhiteTeam "Scotland"]
[BlackTeam "Qatar"]
[WhiteTeamCountry "SCO"]
[BlackTeamCountry "QAT"]
[TimeControl "40/5400+30:1800+30"]

{[%evp 14,97,28,15,41,39,61,54,47,37,32,37,108,100,111,103,116,135,120,122,239,230,327,312,328,254,252,248,226,231,231,225,255,261,324,328,512,503,521,529,520,516,531,526,537,527,541,533,534,534,576,556,601,627,701,708,715,715,707,707,682,656,883,881,1767,1714,1766,4044,4838,4847,2719,2170,1754,1501,29982,29983,29983,29984,29985,29985,29986,29987,29987,29988,29988,29989]} 1. d4 d5 2. c4 dxc4 3. e3 Nf6 4. Bxc4 e6 5. Nf3 a6 6. O-O c5 7. b3 cxd4 8. Nxd4 b5 9. Be2 e5 10. Nf3 Bd6 {White is slightly better.} 11. Bb2 Qe7 12. Nbd2 O-O ({Black should play} 12... Nbd7 $14) 13. a4 $16 bxa4 14. Nc4 Rd8 {[%cal Bf8d8,Bd8d6,Bd6e6,Be6e8][%mdl 32]} 15. Nxd6 (15. Nfxe5 $2 Bxe5 16. Qc1 Bxb2 17. Qxb2 axb3 18. Qxb3 Be6 $19) 15... Rxd6 16. Qe1 e4 {[#]} (16... Rd8 $16 {might work better.}) 17. Ba3 $1 $18 exf3 (17... axb3 $142 18. Nd4 (18. Bxd6 Qxd6 19. Qc3 Bb7 $16) 18... Be6) 18. Bxf3 {This pair of bishops is nice.} Ra7 19. Qb4 {Wards off Bb7} (19. Bxd6 Qxd6 20. Qa5 Bd7 $16 (20... axb3 $2 21. Rad1 $18)) 19... Re6 {Strongly threatening ...Qxb4.} 20. Qxb8 Qc7 21. Qb4 Re8 {Against Qf8+} 22. Rac1 $40 {[%cal Ba1c1,Bc1c5,Bc5c6][%mdl 160] White goes for the king.} (22. Qxa4 $6 Bb7 23. Bxb7 Qxb7) 22... Qe5 23. Rc5 (23. Qxa4 Bd7 24. Qd4 Qxd4 25. exd4 h5 $18) 23... Qe6 24. Qb8 ({Not} 24. Qxa4 Bb7 25. Rc7 Qb6 $16) 24... Rae7 (24... Qxb3 {was necessary.} 25. Qxa7 Qxa3) 25. Rc6 ({Less strong is} 25. bxa4 Bb7 (25... Nd7 26. Qxc8 Rxc8 27. Rxc8+ Re8 28. Bd5 $16) 26. Qf4 Bxf3 27. Qxf3 Qb3 $14) 25... Qxb3 26. Qxb3 axb3 {Black is weak on the dark squares} 27. Bxe7 Bd7 {[%cal Od7c6]} 28. Bxf6 Bxc6 29. Bxc6 Re6 30. Bd5 Rxf6 31. Bxb3 {[%mdl 4096] Endgame. KRB-KR} g6 32. g3 a5 33. Rc1 Rb6 34. Bd5 Rd6 35. e4 Rd7 36. Rc8+ Kg7 37. Ra8 f5 38. Rxa5 fxe4 39. Bxe4 Kf6 40. Kg2 Rd4 41. Kf3 Rb4 42. h4 Rb6 43. Rc5 {[#] White threatens Rc6+ and mate.} h5 44. Rc6+ {White mates.} Rxc6 45. Bxc6 g5 46. hxg5+ Kxg5 47. Ke4 h4 48. gxh4+ Kxh4 49. f4 {Black got outplayed after the opening.   Weighted Error Value: White=0.05 (flawless) /Black=0.34.  Mistake:       	---       	Black=4      OK:         	White=16    	Black=9      Best:        	White=2     	Black=1      Strong:       	White=1     	---} 1-0